bitfinex/quotes_SOLUSD_20251206
["timestamp","ask_amount","ask_price","bid_price","bid_amount"]
[1765044665330,16.978864,132.78,132.75,27.90902147]
[1765044665658,16.978864,132.78,132.75,28.10902147]
[1765044666150,16.978864,132.78,132.75,24.80285442]
[1765044666359,16.978864,132.78,132.75,24.60285442]
[1765044666552,39.59221341,132.78,132.75,24.60285442]
[1765044667064,38.92221341,132.78,132.76,0.2]
[1765044667231,38.92221341,132.78,132.77,8.26]
[1765044667756,39.59221341,132.78,132.77,8.26]
[1765044670360,42.89838046,132.78,132.77,8.26]
[1765044671452,39.59221341,132.78,132.77,8.26]
[1765044673569,16.978864,132.78,132.77,8.26]
[1765044673865,29.29497597,132.78,132.77,8.26]
[1765044675962,16.978864,132.78,132.77,8.26]
[1765044685854,25.78880892,132.78,132.77,8.26]
[1765044687171,16.978864,132.78,132.77,8.26]
[1765044693461,16.978864,132.78,132.75,16.34272552]
[1765044693663,0.7,132.77,132.76,17.06994492]
[1765044701890,0.7,132.77,132.76,24.60233419]
[1765044703789,16.308864,132.78,132.77,8.80994492]
[1765044704192,17.008864,132.78,132.77,8.80994492]
[1765044705698,32.80125327,132.78,132.77,8.80994492]
[1765044706198,0.7,132.8,132.77,21.70519727]
[1765044706381,0.7,132.8,132.78,8.26]
[1765044709096,0.7,132.8,132.78,13.42343041]
[1765044709807,0.7,132.8,132.78,8.26]
[1765044710179,23.30994083,132.8,132.78,8.26]
[1765044710582,0.67,132.79,132.78,17.06994492]
[1765044715706,23.32994083,132.8,132.78,17.06994492]
[1765044716612,13.41261581,132.82,132.79,8.80994492]
[1765044716812,22.60823693,132.81,132.8,8.26]
[1765044717611,23.32823693,132.81,132.8,8.26]
[1765044718013,22.60823693,132.81,132.8,8.26]
[1765044718202,5.16343041,132.85,132.81,8.80994492]
[1765044718399,0.72,132.82,132.81,8.80994492]
[1765044718713,0.72,132.82,132.81,17.06994492]
[1765044718899,0.72,132.82,132.81,39.67307168]
[1765044719585,0.72,132.82,132.81,17.06994492]
[1765044720811,5.88343041,132.82,132.8,22.60482989]
[1765044721020,0.72,132.82,132.81,8.26]
[1765044721314,27.7682603,132.82,132.81,8.26]
[1765044721816,28.4882603,132.82,132.81,8.26]
[1765044722201,36.017288,132.82,132.78,16.34100755]
[1765044722403,5.16343041,132.8,132.79,17.06994492]
[1765044722817,28.4882603,132.8,132.79,17.06994492]
[1765044727719,5.88343041,132.8,132.79,17.06994492]
[1765044734927,28.49166734,132.8,132.79,17.06994492]
[1765044736563,26.63239482,132.8,132.79,17.06994492]
[1765044738807,4.02415789,132.8,132.79,17.06994492]
[1765044739934,4.02415789,132.8,132.79,16.34063247]
[1765044740136,4.02415789,132.8,132.79,24.60063247]
[1765044740509,0.72,132.8,132.79,24.60063247]
[1765044741325,4.02415789,132.8,132.79,24.60063247]
[1765044744339,26.63239482,132.8,132.79,24.60063247]
[1765044746857,4.02415789,132.8,132.79,24.60063247]
[1765044747852,0.72,132.8,132.79,24.60063247]
[1765044749054,4.02415789,132.8,132.79,24.60063247]
[1765044751634,0.72,132.8,132.79,24.60063247]
[1765044753454,4.02415789,132.8,132.79,24.60063247]
[1765044755866,0.72,132.8,132.79,24.60063247]
[1765044756159,4.01415789,132.82,132.8,8.80994492]
[1765044756336,26.62069117,132.82,132.81,8.26]
[1765044757251,23.31653328,132.82,132.81,8.26]
[1765044757441,26.62069117,132.82,132.81,8.26]
[1765044760640,23.31653328,132.82,132.81,8.26]
[1765044762270,23.31653328,132.82,132.81,24.59949841]
[1765044762556,17.04960722,132.83,132.81,24.59949841]
[1765044763357,17.04960722,132.83,132.82,8.80994492]
[1765044763666,17.75960722,132.84,132.82,8.80994492]
[1765044763841,17.75960722,132.84,132.83,8.26]
[1765044765437,0.71,132.84,132.83,8.26]
[1765044766341,0.71,132.84,132.83,17.06994492]
[1765044767860,4.01415789,132.85,132.83,17.06994492]
[1765044768061,0.71,132.85,132.83,17.06994492]
[1765044768260,27.13982947,132.86,132.83,17.06994492]
[1765044768477,0.71,132.84,132.83,17.06994492]
[1765044774102,3.97415789,132.85,132.83,17.06994492]
[1765044774276,16.308864,132.86,132.84,8.80994492]
[1765044774464,16.978864,132.86,132.85,8.26]
[1765044780195,16.988864,132.86,132.85,17.06994492]
[1765044780490,0.1,132.87,132.86,8.80994492]
[1765044781477,0.1,132.87,132.86,9.00994492]
[1765044782287,0.1,132.87,132.86,16.33666477]
[1765044793503,0.1,132.87,132.86,16.53666477]
[1765044794392,0.1,132.87,132.86,16.33666477]
[1765044795091,0.1,132.87,132.86,19.84082266]
[1765044795299,1e-08,132.87,132.86,40.30651653]
[1765044796402,1e-08,132.87,132.86,42.15471419]
[1765044797802,1e-08,132.87,132.86,47.30706974]
[1765044798686,0.1,132.9,132.87,0.2]
[1765044798996,0.1,132.9,132.89,13.96230047]
[1765044799197,0.1,132.9,132.89,21.48732116]
[1765044799500,0.1,132.9,132.89,21.68732116]
[1765044799905,0.1,132.9,132.89,24.69880243]
[1765044801208,0.1,132.9,132.89,24.49880243]
[1765044804819,0.1,132.91,132.89,24.69880243]
[1765044804996,0.1,132.91,132.9,22.42230047]
[1765044805391,1e-08,132.91,132.9,26.18577379]
[1765044806994,1e-08,132.91,132.9,33.71022826]
[1765044808416,1e-08,132.92,132.91,9.00994492]
[1765044808717,1e-08,132.92,132.91,14.16230047]
[1765044809019,1e-08,132.92,132.91,16.97310171]
[1765044809312,1e-08,132.92,132.91,17.17310171]
[1765044810416,1e-08,132.92,132.91,24.69699005]
[1765044811512,1e-08,132.92,132.91,33.49365238]
[1765044813226,1e-08,132.95,132.93,8.80994492]
[1765044813412,1e-08,132.95,132.94,30.49670997]
[1765044813730,1e-08,132.95,132.94,30.69670997]
[1765044814021,1e-08,132.96,132.95,9.00994492]
[1765044814217,1e-08,132.96,132.95,14.16230047]
[1765044814806,1e-08,132.98,132.95,30.47116447]
[1765044815019,1e-08,132.99,132.97,13.96230047]
[1765044815323,1e-08,132.99,132.98,22.22230047]
[1765044815524,1e-08,133.0,132.99,16.32930727]
[1765044815726,1e-08,133.0,132.99,21.68166282]
[1765044819110,1e-08,133.0,132.99,26.83401837]
[1765044819934,1e-08,133.04,132.99,84.02923604]
[1765044820104,1e-08,133.04,133.03,13.96230047]
[1765044820300,1e-08,133.04,133.03,22.22230047]
[1765044820505,1e-08,133.04,133.03,25.23061092]
[1765044821331,0.7,133.07,133.04,8.80994492]
[1765044821642,0.7,133.07,133.06,5.15235555]
[1765044822130,0.7,133.07,133.06,12.66776213]
[1765044822719,0.7,133.07,133.06,15.67562015]
[1765044823231,0.7,133.07,133.06,12.66776213]
[1765044824915,0.7,133.07,133.06,15.67562015]
[1765044825231,0.1,133.08,133.06,24.48556507]
[1765044825429,0.8,133.08,133.07,13.41235555]
[1765044826433,0.8,133.08,133.07,20.92719736]
[1765044827238,0.1,133.08,133.07,20.92719736]
[1765044828435,1e-08,133.08,133.07,29.73714228]
[1765044828652,1e-08,133.08,133.07,34.88949783]
[1765044828858,1e-08,133.08,133.07,29.73714228]
[1765044830118,1e-08,133.08,133.07,24.58478673]
[1765044830341,0.67000001,133.08,133.07,29.73714228]
[1765044834323,1e-08,133.08,133.07,29.73714228]
[1765044834725,1e-08,133.08,133.07,34.88949783]
[1765044834930,1e-08,133.09,133.08,9.00994492]
[1765044835230,1e-08,133.09,133.08,14.16230047]
[1765044836625,1e-08,133.09,133.08,21.47657759]
[1765044838562,0.72000001,133.09,133.08,16.32422204]
[1765044838744,0.72000001,133.09,133.08,29.73657759]
[1765044839932,0.72000001,133.09,133.08,24.58422204]
[1765044843426,1e-08,133.09,133.08,29.73657759]
[1765044843631,0.82,133.11,133.08,48.5222704]
[1765044843857,0.82,133.11,133.1,21.47544847]
[1765044844039,0.82,133.11,133.1,29.73544847]
[1765044845455,0.82,133.11,133.1,24.58309292]
[1765044859560,0.82,133.11,133.08,18.78569281]
[1765044859561,4.10808868,133.11,133.08,18.78569281]
[1765044859775,3.28808868,133.1,133.09,8.24]
[1765044859982,4.00808868,133.1,133.09,8.24]
[1765044860273,0.7,133.09,133.08,8.24]
[1765044860575,3.98808868,133.09,133.08,8.24]
[1765044860782,3.98808868,133.09,133.05,8.80994492]
[1765044860963,3.28808868,133.07,133.06,8.26]
[1765044861350,0.7,133.07,133.06,8.26]
[1765044861551,0.7,133.09,133.07,8.80994492]
[1765044861747,0.7,133.09,133.08,8.26]
[1765044861958,0.7,133.09,133.08,15.77427712]
[1765044862181,0.7,133.09,133.08,24.58422204]
[1765044862679,3.48808868,133.09,133.08,8.26]
[1765044864567,3.48808868,133.09,133.06,7.51530605]
[1765044864779,3.98808868,133.08,133.07,8.26]
[1765044866552,3.48808868,133.08,133.07,8.26]
[1765044866760,16.408864,133.11,133.07,15.77484181]
[1765044867065,3.28808868,133.1,133.07,15.77484181]
[1765044868792,0.7,133.09,133.07,15.77484181]
[1765044870988,3.98808868,133.09,133.07,15.77484181]
[1765044871588,3.28808868,133.09,133.07,15.77484181]
[1765044871769,0.7,133.08,133.07,24.58478673]
[1765044873592,3.28808868,133.09,133.07,24.58478673]
[1765044873798,0.7,133.08,133.07,15.77484181]
[1765044874291,3.98808868,133.08,133.07,15.77484181]
[1765044874987,0.7,133.08,133.07,15.77484181]
[1765044877759,3.98808868,133.08,133.03,18.79149874]
[1765044877977,3.28808868,133.06,133.04,17.06994492]
[1765044878367,3.98808868,133.06,133.04,17.06994492]
[1765044878671,3.98808868,133.06,133.05,7.5158367]
[1765044878874,3.28808868,133.06,133.05,7.5158367]
[1765044879099,3.28808868,133.06,133.04,7.51650327]
[1765044879304,3.28808868,133.05,133.04,7.51650327]
[1765044879467,3.28808868,133.05,133.04,15.77650327]
[1765044879672,3.98808868,133.05,133.04,15.77650327]
[1765044881792,3.28808868,133.06,133.04,15.77650327]
[1765044882096,3.28808868,133.07,133.04,35.24784422]
[1765044882597,3.98808868,133.07,133.05,8.80994492]
[1765044882909,3.98808868,133.07,133.06,8.26]
[1765044883571,3.98808868,133.07,133.06,15.77540658]
[1765044885882,3.98808868,133.07,133.06,8.26]
[1765044887000,3.28808868,133.07,133.06,8.26]
[1765044887202,0.7,133.07,133.06,15.77540658]
[1765044887365,3.98808868,133.07,133.06,15.77540658]
[1765044887876,3.98808868,133.1,133.06,25.2653515]
[1765044888073,3.28808868,133.1,133.06,24.5853515]
[1765044888279,0.7,133.09,133.06,25.2653515]
[1765044892021,3.98808868,133.09,133.06,25.2653515]
[1765044892925,23.92149211,133.11,133.07,0.72]
[1765044893230,3.28808868,133.09,133.08,8.26]
[1765044894024,3.99808868,133.09,133.08,8.26]
[1765044898130,0.71,133.09,133.08,8.26]
[1765044898310,3.99808868,133.09,133.08,8.26]
[1765044899841,3.28808868,133.09,133.08,8.26]
[1765044901417,3.28808868,133.1,133.09,8.80994492]
[1765044901622,3.28808868,133.1,133.09,9.52994492]
[1765044901839,3.28808868,133.1,133.09,8.80994492]
[1765044902039,0.71,133.1,133.08,15.77405019]
[1765044902338,3.28808868,133.09,133.08,24.58399511]
[1765044902536,3.28808868,133.09,133.08,25.30399511]
[1765044903547,3.28808868,133.09,133.08,8.26]
[1765044904428,3.99808868,133.1,133.08,8.26]
[1765044905414,0.1,133.11,133.09,0.72]
[1765044905635,0.1,133.11,133.1,8.26]
[1765044907754,0.1,133.11,133.1,25.30309292]
[1765044910231,0.81,133.11,133.1,24.58309292]
[1765044910539,4.09808868,133.11,133.08,7.51417877]
[1765044910721,0.81,133.11,133.1,8.26]
[1765044910921,0.1,133.11,133.1,8.26]
[1765044911542,0.81,133.11,133.1,8.26]
[1765044912109,4.09808868,133.11,133.1,8.26]
[1765044912516,4.09808868,133.11,133.04,18.79108379]
[1765044912517,4.09808868,133.11,133.09,8.26]
[1765044912825,3.99808868,133.1,133.09,8.26]
[1765044913019,3.28808868,133.1,133.09,8.26]
[1765044913550,4.09808868,133.11,133.09,8.26]
[1765044913736,3.28808868,133.1,133.09,8.26]
[1765044913926,3.99808868,133.1,133.09,8.26]
[1765044915948,3.28808868,133.1,133.09,8.26]
[1765044916647,3.28808868,133.1,133.09,15.77371252]
[1765044916947,3.38808868,133.11,133.09,16.49371252]
[1765044917643,0.1,133.11,133.09,16.49371252]
[1765044917822,3.38808868,133.11,133.09,16.49371252]
[1765044918434,5.23846292,133.11,133.09,16.49371252]
[1765044919753,5.94846292,133.11,133.09,15.77371252]
[1765044920647,5.13846292,133.1,133.09,15.77371252]
[1765044922159,5.13846292,133.1,133.09,8.26]
[1765044922339,5.85846292,133.1,133.09,8.26]
[1765044923421,5.13846292,133.1,133.08,7.51389492]
[1765044923624,22.26732692,133.11,133.08,8.20389492]
[1765044924124,17.128864,133.11,133.08,8.20389492]
[1765044924324,0.1,133.11,133.09,9.49994492]
[1765044924555,0.1,133.11,133.1,17.06994492]
[1765044924745,0.1,133.11,133.1,17.75994492]
[1765044926342,0.1,133.11,133.1,25.27309292]
[1765044926851,0.1,133.11,133.1,8.26]
[1765044928052,0.1,133.11,133.09,17.01349927]
[1765044928264,0.1,133.11,133.1,8.26]
[1765044929259,5.95846292,133.11,133.1,8.26]
[1765044932351,29.77991049,133.11,133.07,8.80994492]
[1765044932557,5.13846292,133.09,133.08,8.26]
[1765044933357,5.85846292,133.09,133.08,8.26]
[1765044934254,5.85846292,133.09,133.07,8.26]
[1765044948285,0.72,133.09,133.07,8.26]
[1765044948461,5.13846292,133.1,133.08,9.49994492]
[1765044949356,5.85846292,133.1,133.08,8.80994492]
[1765044950184,5.13846292,133.09,133.08,8.80994492]
[1765044950586,5.13846292,133.09,133.07,16.46456466]
[1765044950787,5.84846292,133.09,133.07,8.26]
[1765044952306,5.13846292,133.08,133.07,8.26]
[1765044952978,5.81846292,133.08,133.05,24.58553186]
[1765044953179,5.13846292,133.06,133.05,8.26]
[1765044957393,5.13846292,133.06,133.05,8.94]
[1765044958279,5.81846292,133.07,133.05,8.94]
[1765044960691,5.13846292,133.08,133.05,15.77585556]
[1765044960998,5.81846292,133.1,133.06,5.81846292]
[1765044961182,5.81846292,133.1,133.07,0.68]
[1765044961382,5.81846292,133.1,133.08,8.26]
[1765044961584,5.13846292,133.09,133.08,8.26]
[1765044965495,21.44732692,133.09,133.08,8.26]
[1765044968697,16.308864,133.09,133.08,8.26]
[1765044968906,21.44732692,133.09,133.08,8.26]
[1765044970104,22.12732692,133.09,133.08,8.26]
[1765044971985,21.44732692,133.09,133.08,8.26]
[1765044974013,0.1,133.11,133.08,8.94]
[1765044974014,23.92155491,133.11,133.08,8.94]
[1765044974191,13.43115383,133.11,133.08,8.26]
[1765044974385,13.43115383,133.11,133.09,0.68]
[1765044974709,13.43115383,133.11,133.08,8.94]
[1765044975415,13.43115383,133.11,133.09,0.68]
[1765044975416,0.1,133.11,133.09,0.68]
[1765044975596,5.23846292,133.11,133.09,0.68]
[1765044978492,3.38861112,133.11,133.09,0.68]
[1765044990230,0.1,133.11,133.09,8.19362464]
[1765044990608,16.408864,133.11,133.1,0.67]
[1765044999564,19.69747512,133.11,133.1,0.67]
[1765045002377,17.128864,133.11,133.08,7.51412747]
[1765045002540,17.128864,133.11,133.09,8.26]
[1765045002541,4.00861112,133.1,133.09,8.26]
[1765045004433,3.28861112,133.1,133.09,8.26]
[1765045004959,4.00861112,133.1,133.09,8.26]
[1765045006161,3.28861112,133.1,133.09,8.26]
[1765045016276,3.28861112,133.1,133.09,8.93]
[1765045016590,3.28861112,133.1,133.09,8.26]
[1765045016786,3.28861112,133.1,133.09,8.98]
[1765045017292,3.28861112,133.1,133.09,8.26]
[1765045018980,3.28861112,133.1,133.09,8.98]
[1765045019481,3.28861112,133.1,133.09,8.26]
[1765045021894,3.28861112,133.1,133.09,8.98]
[1765045022899,3.28861112,133.1,133.09,8.26]
[1765045023298,3.28861112,133.1,133.09,8.98]
[1765045024301,3.28861112,133.1,133.09,8.26]
[1765045025105,3.28861112,133.1,133.09,8.98]
[1765045026099,19.69747512,133.11,133.09,8.98]
[1765045026302,19.69747512,133.11,133.1,0.72]
[1765045026904,16.408864,133.11,133.1,0.72]
[1765045032310,19.69747512,133.11,133.1,0.72]
[1765045034410,19.69747512,133.11,133.08,0.72]
[1765045034600,0.72,133.1,133.09,8.24]
[1765045034797,4.00861112,133.1,133.09,8.24]
[1765045037125,3.28861112,133.1,133.09,8.24]
[1765045037303,3.28861112,133.1,133.08,9.52994492]
[1765045037621,24.64150948,133.11,133.09,8.24]
[1765045038694,3.28861112,133.1,133.09,8.24]
[1765045040427,5.13977555,133.1,133.09,8.24]
[1765045041711,21.54863955,133.11,133.09,8.92]
[1765045042430,5.13977555,133.1,133.09,8.92]
[1765045043531,16.408864,133.11,133.09,8.92]
[1765045043832,16.408864,133.11,133.1,0.68]
[1765045046137,0.1,133.11,133.1,22.14286847]
[1765045047508,0.1,133.13,133.11,8.80994492]
[1765045047720,5.13977555,133.2,133.13,8.80994492]
[1765045047909,5.13977555,133.19,133.16,8.80994492]
[1765045048108,0.72,133.21,133.17,8.94]
[1765045048337,5.13977555,133.19,133.17,8.94]
[1765045048518,5.13977555,133.18,133.15,0.68]
[1765045048828,0.72,133.18,133.17,8.26]
[1765045049438,16.308864,133.21,133.17,8.26]
[1765045049621,0.72,133.19,133.17,8.26]
[1765045049820,5.13977555,133.18,133.17,8.26]
[1765045051113,5.13977555,133.19,133.17,8.94]
[1765045051319,5.13977555,133.19,133.18,0.68]
[1765045051510,5.13977555,133.2,133.18,0.68]
[1765045052823,21.44863955,133.21,133.18,8.18859895]
[1765045053035,22.16863955,133.21,133.19,0.68]
[1765045053337,16.308864,133.21,133.2,8.26]
[1765045053528,22.16863955,133.21,133.2,8.26]
[1765045057925,29.67558347,133.21,133.2,8.26]
[1765045058353,29.67558347,133.21,133.17,8.26]
[1765045058653,5.13977555,133.19,133.17,8.94]
[1765045059473,5.85977555,133.19,133.17,8.26]
[1765045059648,5.13977555,133.18,133.17,8.26]
[1765045062464,5.85977555,133.19,133.17,8.26]
[1765045063371,5.13977555,133.18,133.17,8.26]
[1765045065060,5.85977555,133.18,133.15,0.68]
[1765045065369,5.13977555,133.17,133.15,8.92]
[1765045068769,7.50756464,133.2,133.15,15.74985552]
[1765045068975,5.13977555,133.19,133.16,0.68]
[1765045070174,5.13977555,133.2,133.16,5.81977555]
[1765045070555,5.13977555,133.2,133.17,0.7]
[1765045070752,5.13977555,133.2,133.17,8.20875011]
[1765045070954,5.13977555,133.2,133.18,0.7]
[1765045071153,5.13977555,133.2,133.18,8.96]
[1765045071579,21.44863955,133.21,133.18,8.96]
[1765045071758,22.15863955,133.21,133.18,8.96]
[1765045072378,17.018864,133.21,133.18,8.96]
[1765045072575,5.13977555,133.2,133.18,8.96]
[1765045073876,24.52585063,133.21,133.18,8.26]
[1765045074056,5.13977555,133.19,133.18,8.26]
[1765045074483,23.81585063,133.21,133.18,8.26]
[1765045074691,5.13977555,133.19,133.18,8.26]
[1765045074985,16.308864,133.21,133.18,8.26]
[1765045075176,5.13977555,133.2,133.19,0.7]
[1765045076191,16.308864,133.21,133.19,0.7]
[1765045076470,5.13977555,133.2,133.19,0.7]
[1765045076767,5.84977555,133.2,133.18,8.26]
[1765045077086,5.13977555,133.19,133.18,8.26]
[1765045077282,5.84977555,133.19,133.16,0.7]
[1765045077582,5.13977555,133.18,133.17,8.24]
[1765045077986,5.13977555,133.18,133.17,8.94]
[1765045080602,5.84977555,133.18,133.17,8.24]
[1765045080902,12.64841048,133.18,133.17,8.24]
[1765045081270,5.13977555,133.18,133.17,8.24]
[1765045081880,5.13977555,133.19,133.17,8.94]
[1765045082078,5.13977555,133.19,133.18,0.7]
[1765045082492,5.13977555,133.2,133.18,0.7]
[1765045086478,17.018864,133.21,133.16,8.20970206]
[1765045086479,5.84977555,133.19,133.16,8.20970206]
[1765045086685,5.13977555,133.18,133.17,8.24]
[1765045086989,5.13977555,133.18,133.17,8.94]
[1765045087195,5.13977555,133.18,133.17,8.24]
[1765045087196,5.84977555,133.18,133.17,8.24]
[1765045087408,5.13977555,133.18,133.17,8.24]
[1765045087901,5.84977555,133.18,133.17,8.24]
[1765045089106,5.13977555,133.18,133.17,8.24]
[1765045089305,13.35841048,133.18,133.13,7.51102575]
[1765045089484,5.13977555,133.15,133.14,8.96]
[1765045090110,5.13977555,133.16,133.14,8.96]
[1765045090299,5.13977555,133.16,133.15,0.7]
[1765045094315,5.13977555,133.16,133.14,8.96]
[1765045094911,5.13977555,133.16,133.14,8.26]
[1765045095088,5.13977555,133.16,133.14,8.96]
[1765045095413,5.13977555,133.16,133.15,0.7]
[1765045098332,8.21863493,133.18,133.15,0.7]
[1765045098543,5.13977555,133.16,133.15,0.7]
[1765045099407,7.50858138,133.19,133.15,0.7]
[1765045099606,5.13977555,133.18,133.15,8.21027103]
[1765045100034,5.13977555,133.18,133.16,0.7]
[1765045100342,5.13977555,133.18,133.17,8.24]
[1765045101408,5.85977555,133.18,133.17,8.24]
[1765045102031,5.13977555,133.18,133.17,8.24]
[1765045102531,3.28561313,133.18,133.17,8.24]
[1765045103718,24.53744538,133.21,133.17,8.89]
[1765045104031,24.53744538,133.21,133.18,0.65]
[1765045104032,3.28561313,133.2,133.18,0.65]
[1765045107015,3.28561313,133.19,133.18,0.65]
[1765045107729,3.28561313,133.19,133.17,8.24]
[1765045107921,3.28561313,133.18,133.16,0.65]
[1765045108123,3.28561313,133.18,133.17,8.24]
[1765045108335,3.28561313,133.19,133.17,8.24]
[1765045108642,0.1,133.22,133.18,0.65]
[1765045108810,3.38561313,133.22,133.19,8.80994492]
[1765045109010,3.38561313,133.22,133.2,8.91]
[1765045109428,3.38561313,133.22,133.21,0.65]
[1765045109429,0.1,133.22,133.21,0.65]
[1765045110538,3.38561313,133.22,133.21,0.65]
[1765045111643,0.1,133.22,133.21,0.65]
[1765045112562,2.48561313,133.23,133.21,0.65]
[1765045113871,0.1,133.24,133.22,8.80994492]
[1765045114076,0.1,133.24,133.23,17.06994492]
[1765045114440,0.1,133.24,133.23,17.71994492]
[1765045116152,0.1,133.24,133.23,25.22576192]
[1765045116445,0.1,133.24,133.23,17.71994492]
[1765045116642,0.1,133.24,133.23,8.26]
[1765045116845,0.1,133.24,133.23,8.91]
[1765045119668,0.1,133.24,133.23,25.22576192]
[1765045121554,0.1,133.24,133.23,17.71994492]
[1765045121773,0.1,133.24,133.23,8.26]
[1765045122856,0.1,133.24,133.23,8.91]
[1765045123278,0.1,133.24,133.23,8.26]
[1765045125753,0.82,133.24,133.23,8.26]
[1765045126153,0.1,133.24,133.23,8.26]
[1765045126964,4.10561313,133.24,133.2,9.45994492]
[1765045127173,4.10561313,133.24,133.21,8.26]
[1765045127373,3.28561313,133.22,133.21,8.26]
[1765045127681,20.31447713,133.22,133.17,16.31909192]
[1765045127885,3.28561313,133.2,133.18,8.91]
[1765045129073,19.59447713,133.22,133.19,9.45994492]
[1765045129463,19.59447713,133.22,133.2,8.91]
[1765045130260,3.97561313,133.21,133.18,0.71]
[1765045130564,0.69,133.21,133.2,8.26]
[1765045131471,3.97561313,133.21,133.2,8.26]
[1765045135272,19.59447713,133.22,133.2,8.95]
[1765045135477,19.59447713,133.22,133.21,0.69]
[1765045136385,19.59447713,133.22,133.2,8.95]
[1765045137790,3.28561313,133.21,133.2,8.95]
[1765045139585,3.28561313,133.21,133.2,8.26]
[1765045140085,3.28561313,133.21,133.2,8.95]
[1765045141892,3.28561313,133.21,133.2,8.26]
[1765045142097,4.00561313,133.21,133.2,8.26]
[1765045142297,4.00561313,133.21,133.19,8.26]
[1765045142494,3.28561313,133.2,133.19,8.26]
[1765045142975,3.28561313,133.21,133.19,8.95]
[1765045143169,19.59447713,133.22,133.2,0.69]
[1765045143689,3.28561313,133.21,133.2,0.69]
[1765045144798,3.28561313,133.21,133.19,8.95]
[1765045146075,3.28561313,133.2,133.19,8.95]
[1765045147178,11.51332276,133.2,133.16,16.31951739]
[1765045147377,3.28561313,133.19,133.17,8.95]
[1765045149929,3.28561313,133.19,133.17,8.26]
[1765045150081,3.28561313,133.19,133.18,0.69]
[1765045150876,3.28561313,133.2,133.18,0.69]
[1765045151076,3.28561313,133.21,133.18,17.00857985]
[1765045151282,3.28561313,133.21,133.19,8.80994492]
[1765045151484,3.28561313,133.21,133.2,8.26]
[1765045151689,3.28561313,133.21,133.2,8.95]
[1765045159317,3.28561313,133.21,133.2,8.26]
[1765045160232,3.28561313,133.21,133.2,8.93]
[1765045162442,5.1308962,133.21,133.2,8.26]
[1765045163133,5.1308962,133.21,133.2,8.93]
[1765045169447,5.8308962,133.21,133.17,8.80994492]
[1765045169628,5.1308962,133.18,133.16,0.67]
[1765045169833,5.1308962,133.18,133.14,18.77663579]
[1765045169834,5.1308962,133.17,133.14,0.67]
[1765045170028,5.1308962,133.16,133.15,8.26]
[1765045170647,5.1308962,133.16,133.15,8.93]
[1765045172161,5.1308962,133.16,133.15,8.26]
[1765045177063,5.1308962,133.16,133.14,0.67]
[1765045177358,8.20933714,133.17,133.15,8.26]
[1765045178455,5.1308962,133.16,133.15,8.26]
[1765045179875,13.34065889,133.16,133.15,8.26]
[1765045183463,5.1308962,133.16,133.15,8.26]
[1765045188074,13.34065889,133.16,133.15,8.26]
[1765045189137,13.34065889,133.16,133.11,16.32237724]
[1765045189343,5.1308962,133.14,133.12,8.93]
[1765045189581,5.1308962,133.13,133.12,8.93]
[1765045192198,5.1308962,133.13,133.12,8.26]
[1765045193079,5.1308962,133.13,133.12,8.95]
[1765045194622,5.1308962,133.14,133.12,8.95]
[1765045194795,5.1308962,133.14,133.13,0.69]
[1765045199009,5.1308962,133.15,133.13,0.69]
[1765045201206,5.1308962,133.14,133.13,0.69]
[1765045201402,5.1308962,133.14,133.12,8.26]
[1765045201582,5.1308962,133.13,133.12,8.26]
[1765045204905,5.8408962,133.13,133.12,8.26]
[1765045205206,5.1308962,133.13,133.12,8.26]
[1765045206198,5.8408962,133.13,133.12,8.26]
[1765045206384,5.1308962,133.13,133.12,8.26]
[1765045208582,8.22102478,133.14,133.12,8.26]
[1765045208775,5.1308962,133.14,133.13,0.69]
[1765045208993,16.308864,133.16,133.13,0.69]
[1765045208994,5.1308962,133.15,133.13,0.69]